bitfinex/quotes_SOLUSD_20250718
["timestamp","ask_amount","ask_price","bid_price","bid_amount"]
[1752797791969,1.602,176.01,175.93,29.6]
[1752797792672,1.602,176.01,175.87,0.03]
[1752797792673,16.78468397,176.0,175.89,5.68510306]
[1752797792873,16.78468397,176.0,175.89,61.28510306]
[1752797793481,5.68214103,175.99,175.89,61.28510306]
[1752797793684,7.2837429,176.01,175.92,26.0]
[1752797793895,16.78468397,176.0,175.9,26.0]
[1752797794903,5.68214103,175.99,175.91,5.68472514]
[1752797795107,5.68214103,175.99,175.9,5.68500101]
[1752797795278,5.68214103,175.99,175.9,29.6]
[1752797796484,5.68214103,175.99,175.9,35.28494401]
[1752797796803,31.68214103,175.99,175.9,35.28494401]
[1752797799199,26.0,175.99,175.9,35.28494401]
[1752797799503,5.6818949,176.0,175.9,35.28494401]
[1752797799687,5.6818949,176.0,175.9,49.49756481]
[1752797799888,1.602,176.01,175.94,26.0]
[1752797800093,1.602,176.01,175.94,55.6]
[1752797800777,7.28367549,176.01,175.94,55.6]
[1752797801204,7.28367549,176.01,175.95,5.68343279]
[1752797801916,6.2697,176.02,175.95,5.68343279]
[1752797802116,6.2697,176.02,175.95,19.89201477]
[1752797802777,11.95098786,176.02,175.94,61.28366125]
[1752797802980,11.95098786,176.02,175.94,5.68366125]
[1752797803195,11.95098786,176.02,175.92,55.6]
[1752797803782,11.95098786,176.02,175.92,29.6]
[1752797803991,26.15391934,176.02,175.92,35.28433194]
[1752797805113,11.95098786,176.02,175.92,35.28433194]
[1752797805815,6.2697,176.02,175.92,49.49533694]
[1752797805993,6.2697,176.02,175.95,26.0]
[1752797806691,11.95094172,176.02,175.95,26.0]
[1752797807300,11.95094172,176.02,175.96,6.34310979]
[1752797807603,11.95094172,176.02,175.96,0.66]
[1752797808131,11.95094385,176.02,175.96,0.66]
[1752797808487,0.68,176.01,175.94,0.66]
[1752797808909,1.5944,176.0,175.94,0.66]
[1752797809095,2.2744,176.0,175.94,0.66]
[1752797809611,5.68214103,175.99,175.94,6.34371937]
[1752797809793,2.2744,176.0,175.94,6.34371937]
[1752797809794,1.5944,176.0,175.95,0.66]
[1752797810000,7.27625751,176.0,175.96,0.66]
[1752797810309,0.68,175.99,175.93,0.66]
[1752797810480,7.27625751,176.0,175.93,0.66]
[1752797811187,7.27625751,176.0,175.93,6.34399895]
[1752797811605,7.27625751,176.0,175.93,0.66]
[1752797811807,7.95625751,176.0,175.93,0.66]
[1752797812385,16.78468397,175.98,175.91,0.66]
[1752797812689,30.28,175.97,175.89,0.66]
[1752797813498,5.68310979,175.96,175.89,6.34520902]
[1752797813688,5.68310979,175.96,175.89,0.66]
[1752797813897,6.36310979,175.96,175.89,6.34534908]
[1752797814096,6.36310979,175.96,175.9,0.66]
[1752797814410,29.6,175.97,175.9,0.66]
[1752797814411,35.28288681,175.97,175.9,0.66]
[1752797815411,29.6,175.97,175.9,0.66]
[1752797815587,29.6,175.97,175.91,5.68472514]
[1752797815792,29.6,175.97,175.92,0.66]
[1752797816193,35.96286073,175.97,175.89,0.66]
[1752797816400,35.28286073,175.97,175.89,0.66]
[1752797816600,0.68,175.96,175.89,0.66]
[1752797817724,19.89201477,175.95,175.87,30.29]
[1752797818011,6.7613,175.94,175.87,30.29]
[1752797818200,0.68,175.93,175.87,29.63]
[1752797818400,0.68,175.93,175.87,0.03]
[1752797818712,0.68,175.93,175.91,0.03]
[1752797818891,0.68,175.92,175.91,0.03]
[1752797819418,6.364402,175.92,175.91,0.03]
[1752797820404,24.72768597,175.92,175.91,0.03]
[1752797820910,27.5986,175.92,175.91,0.03]
[1752797821110,1.5986,175.92,175.91,0.03]
[1752797821614,19.04328397,175.92,175.91,0.03]
[1752797822004,24.72768597,175.92,175.91,0.03]
[1752797823126,31.1986,175.92,175.91,0.03]
[1752797824299,1.5986,175.92,175.91,0.03]
[1752797824496,35.6813,175.94,175.91,0.03]
[1752797824700,41.36510561,175.94,175.91,0.03]
[1752797824900,42.02510561,175.94,175.91,0.03]
[1752797825114,0.66,175.93,175.91,0.03]
[1752797825521,0.66,175.92,175.91,0.03]
[1752797826222,6.344402,175.92,175.91,0.03]
[1752797828117,6.25985655,175.92,175.91,0.03]
[1752797831727,52.64454052,175.92,175.91,0.03]
[1752797836033,35.85985655,175.92,175.91,0.03]
[1752797836539,35.19985655,175.92,175.91,0.03]
[1752797837233,29.6,175.92,175.91,0.03]
[1752797837435,55.6,175.93,175.91,0.03]
[1752797837612,61.28413746,175.93,175.91,0.03]
[1752797837818,61.94413746,175.93,175.91,0.03]
[1752797838615,0.66,175.92,175.91,0.03]
[1752797839139,61.28413746,175.93,175.91,0.03]
[1752797839436,15.76079084,175.96,175.91,0.03]
[1752797839437,2.2127,175.96,175.91,0.03]
[1752797839643,46.38468397,175.97,175.92,0.67]
[1752797839828,72.38468397,175.97,175.92,0.67]
[1752797840019,73.04468397,175.97,175.92,0.67]
[1752797840333,6.34317127,175.96,175.91,0.03]
[1752797840538,29.6,175.95,175.91,0.03]
[1752797840721,30.26,175.95,175.91,0.03]
[1752797840916,0.66,175.94,175.91,0.03]
[1752797841342,30.32,175.93,175.91,0.03]
[1752797842822,36.00416321,175.93,175.91,0.03]
[1752797843148,35.34416321,175.93,175.91,0.03]
[1752797843650,0.66,175.92,175.91,0.03]
[1752797844735,6.344402,175.92,175.91,0.03]
[1752797845244,23.12908597,175.92,175.91,0.03]
[1752797845426,42.78468397,175.89,175.88,0.0975]
[1752797845630,72.38468397,175.89,175.88,0.0975]
[1752797845819,26.0,175.89,175.88,0.0975]
[1752797846142,35.284402,175.92,175.88,0.7675]
[1752797846323,29.6,175.92,175.89,0.67]
[1752797846841,5.74415271,175.93,175.89,0.67]
[1752797847029,0.06,175.93,175.9,0.67]
[1752797847229,0.06,175.93,175.91,26.0]
[1752797847442,0.06,175.93,175.92,0.67]
[1752797848143,0.06,175.93,175.91,26.0]
[1752797848440,0.06,175.93,175.92,0.67]
[1752797849150,0.06,175.93,175.92,6.354402]
[1752797851227,0.06,175.93,175.92,0.67]
[1752797851829,0.06,175.93,175.9,32.37503097]
[1752797852243,0.06,175.93,175.89,35.28532001]
[1752797852544,0.06,175.93,175.9,0.69]
[1752797852731,0.06,175.93,175.91,0.69]
[1752797852933,0.06,175.93,175.91,6.37443812]
[1752797853125,0.06,175.93,175.92,0.69]
[1752797853328,0.06,175.93,175.9,5.68494135]
[1752797853527,0.06,175.93,175.9,6.37494135]
[1752797853837,0.06,175.93,175.89,29.6]
[1752797854036,0.77,175.93,175.88,0.7875]
[1752797854743,0.06,175.93,175.89,0.69]
[1752797854929,0.06,175.93,175.9,5.68504832]
[1752797855325,0.06,175.93,175.9,0.69]
[1752797855927,0.06,175.93,175.88,0.0975]
[1752797856133,0.06,175.93,175.88,6.47308744]
[1752797856651,0.77,175.93,175.88,6.47312122]
[1752797856850,0.71,175.92,175.88,0.0975]
[1752797857153,5.68472514,175.91,175.88,0.0975]
[1752797857447,0.71,175.9,175.88,0.0975]
[1752797859034,6.39537153,175.89,175.88,0.0975]
[1752797859346,23.1800555,175.89,175.88,0.0975]
[1752797861825,29.58,175.91,175.88,0.0975]
[1752797862030,35.26479539,175.91,175.88,0.0975]
[1752797862360,29.58,175.91,175.88,0.7875]
[1752797862539,16.78468397,175.91,175.88,0.0975]
[1752797862847,5.68444074,175.92,175.88,0.0975]
[1752797863228,5.74414064,175.93,175.88,0.0975]
[1752797863539,5.74414064,175.93,175.89,0.69]
[1752797864757,0.06,175.93,175.88,0.0975]
[1752797864937,0.06,175.93,175.88,0.7875]
[1752797865835,0.06,175.93,175.88,0.0975]
[1752797865836,0.71,175.92,175.88,0.0975]
[1752797866051,0.71,175.91,175.88,0.0975]
[1752797866837,6.39499064,175.91,175.88,0.0975]
[1752797867374,5.68499064,175.91,175.88,0.0975]
[1752797867549,6.39499064,175.91,175.88,0.0975]
[1752797868639,5.68499064,175.91,175.88,0.0975]
[1752797868839,5.684402,175.92,175.88,0.0975]
[1752797869163,0.06,175.93,175.89,0.69]
[1752797869349,0.06,175.93,175.88,5.78314789]
[1752797869545,0.06,175.93,175.9,0.69]
[1752797871365,0.06,175.93,175.88,5.78314789]
[1752797871849,0.71,175.92,175.88,0.0975]
[1752797872050,0.71,175.91,175.88,0.0975]
[1752797872961,0.71,175.9,175.88,0.0975]
[1752797873145,16.84468397,175.93,175.88,0.0975]
[1752797873146,0.71,175.89,175.88,0.0975]
[1752797873737,6.39537153,175.89,175.88,0.0975]
[1752797875445,23.1800555,175.89,175.88,0.0975]
[1752797876851,49.1800555,175.89,175.88,0.0975]
[1752797877166,49.1800555,175.89,175.87,0.03]
[1752797877365,30.29,175.88,175.87,0.03]
[1752797877873,16.78468397,175.87,175.83,0.06]
[1752797878054,17.49468397,175.87,175.83,0.06]
[1752797878247,0.71,175.86,175.83,0.06]
[1752797878449,16.78468397,175.85,175.83,0.06]
[1752797878767,17.49468397,175.84,175.83,0.06]
[1752797879177,23.18167214,175.84,175.83,0.06]
[1752797881075,35.26698817,175.84,175.83,0.06]
[1752797881278,35.96698817,175.84,175.83,0.06]
[1752797881466,5.68670092,175.85,175.83,0.06]
[1752797881771,5.68537153,175.89,175.83,0.75]
[1752797882667,35.26513485,175.9,175.84,5.68698817]
[1752797882872,35.26513485,175.9,175.83,0.75]
[1752797883196,5.68447325,175.92,175.83,6.43720931]
[1752797883373,5.68447325,175.92,175.84,0.69]
[1752797884264,5.68447325,175.92,175.85,5.68666477]
[1752797884468,5.68447325,175.92,175.86,0.69]
[1752797884650,5.71447325,175.92,175.86,0.69]
[1752797885866,0.7,175.91,175.84,5.68690727]
[1752797886068,0.7,175.91,175.83,0.75]
[1752797886268,5.68504832,175.9,175.83,6.43724724]
[1752797886457,0.7,175.89,175.83,6.43724724]
[1752797886971,5.68504832,175.9,175.84,0.69]
[1752797888075,5.68504832,175.9,175.84,6.37682772]
[1752797888874,29.58,175.91,175.85,0.69]
[1752797889072,0.03,175.92,175.85,0.69]
[1752797889661,5.71445555,175.92,175.85,0.69]
[1752797890066,6.41445555,175.92,175.85,0.69]
[1752797890271,6.41445555,175.92,175.86,5.6863414]
[1752797890576,0.7,175.91,175.83,0.06]
[1752797890878,0.7,175.91,175.83,0.75]
[1752797891555,6.38488301,175.91,175.84,5.68693]
[1752797891752,0.03,175.92,175.84,5.68693]
[1752797891958,0.03,175.92,175.85,0.69]
[1752797893873,0.03,175.92,175.86,5.6863414]
[1752797894275,0.03,175.92,175.87,0.69]
[1752797895067,0.03,175.92,175.88,0.69]
[1752797895468,0.03,175.92,175.89,0.69]
[1752797896075,0.03,175.92,175.9,6.37504832]
[1752797896480,0.03,175.92,175.9,5.68504832]
[1752797896684,0.03,175.92,175.91,0.69]
[1752797898285,0.03,175.92,175.91,32.37472514]
[1752797899692,0.03,175.92,175.9,5.68494773]
[1752797900087,0.03,175.92,175.9,6.37494773]
[1752797900283,0.03,175.92,175.9,5.68494773]
[1752797900474,0.03,175.92,175.91,0.69]
[1752797900804,0.03,175.92,175.9,5.68494773]
[1752797901088,0.03,175.92,175.91,0.69]
[1752797901663,0.03,175.92,175.9,5.68494773]
[1752797901864,0.03,175.92,175.9,6.37494773]
[1752797902473,0.03,175.92,175.91,0.69]
[1752797904395,0.03,175.92,175.91,6.37472514]
[1752797906394,0.03,175.92,175.91,5.68472514]
[1752797906782,0.03,175.92,175.91,6.37472514]
[1752797907401,0.03,175.92,175.91,5.68472514]
[1752797907994,0.03,175.92,175.91,6.37472514]
[1752797908909,0.03,175.92,175.91,5.68472514]
[1752797909088,0.03,175.92,175.9,26.0]
[1752797909780,0.03,175.92,175.89,5.68537153]
[1752797910804,0.03,175.92,175.89,6.34537153]
[1752797911013,0.03,175.92,175.89,5.68537153]
[1752797911188,0.03,175.92,175.9,0.66]
[1752797911393,0.03,175.92,175.89,6.34537153]
[1752797912413,0.03,175.92,175.89,5.68537153]
[1752797913248,0.03,175.92,175.89,6.34537153]
[1752797913380,0.71,175.92,175.88,29.56]
[1752797913574,0.68,175.91,175.87,26.03]
[1752797913779,0.68,175.91,175.88,26.0]
[1752797914194,0.03,175.92,175.88,26.0]
[1752797914400,0.68,175.91,175.88,26.0]
[1752797915296,0.68,175.9,175.87,0.03]
[1752797915492,0.68,175.89,175.87,0.03]
[1752797916602,5.68569479,175.88,175.87,0.03]
[1752797916999,6.36569479,175.88,175.87,0.03]
[1752797918308,7.89869479,175.88,175.87,0.03]
[1752797918513,31.14297876,175.88,175.87,0.03]
[1752797919413,31.14297876,175.88,175.87,1e-08]
[1752797919714,86.68297876,175.88,175.87,1e-08]
[1752797920906,100.89721573,175.88,175.83,0.06]
[1752797921110,0.68,175.87,175.83,0.06]
[1752797922419,16.78468397,175.85,175.83,0.06]
[1752797922816,47.00468397,175.84,175.83,0.06]
[1752797923204,30.22,175.84,175.83,0.06]
[1752797924432,5.68608996,175.87,175.83,0.06]
[1752797924927,0.68,175.84,175.83,0.06]
[1752797926931,6.36698817,175.84,175.83,0.06]
[1752797927434,0.68,175.84,175.83,0.06]
[1752797928931,6.36698817,175.84,175.83,0.06]
[1752797933038,5.6865797,175.86,175.83,0.06]
[1752797934022,35.90606435,175.87,175.83,0.72]
[1752797934236,35.22606435,175.87,175.83,0.72]
[1752797934551,35.90606435,175.87,175.83,0.06]
[1752797934753,0.68,175.86,175.83,0.06]
[1752797935515,35.22606435,175.87,175.83,0.06]
[1752797935516,0.68,175.85,175.83,0.06]
[1752797936022,0.68,175.84,175.83,0.06]
[1752797937241,6.36698817,175.84,175.83,0.06]
[1752797937846,35.88698817,175.84,175.83,0.06]
[1752797938057,52.67167214,175.84,175.83,0.06]
[1752797939929,52.67167214,175.84,175.81,0.03]
[1752797940121,42.78468397,175.82,175.81,0.03]
[1752797940560,43.49468397,175.82,175.81,0.03]
[1752797940854,35.91698817,175.84,175.81,0.03]
[1752797941357,0.71,175.83,175.81,0.03]
[1752797941728,29.52,175.82,175.81,0.03]
[1752797942130,30.23,175.82,175.81,0.03]
[1752797942428,29.52,175.82,175.81,0.03]
[1752797942650,5.68691463,175.85,175.81,0.03]
[1752797942859,14.21388151,175.89,175.81,0.72]
[1752797942860,5.68659849,175.86,175.81,0.72]
[1752797943068,5.68659849,175.86,175.82,0.69]
[1752797943561,0.71,175.85,175.81,0.03]
[1752797944159,5.68659849,175.86,175.81,0.03]
[1752797944160,0.71,175.84,175.81,0.03]
[1752797944361,30.23,175.84,175.81,0.03]
[1752797944835,0.71,175.83,175.81,0.03]
[1752797945646,22.47231905,175.82,175.81,0.03]
[1752797946051,52.70231905,175.82,175.81,0.03]
[1752797946745,35.91727146,175.84,175.81,0.03]
[1752797947552,29.52,175.84,175.81,0.03]
[1752797947747,40.21393318,175.89,175.81,0.03]
[1752797947982,29.52,175.87,175.82,0.69]
[1752797948342,149.01,175.88,175.83,0.69]
[1752797948874,0.71,175.87,175.83,0.69]
[1752797949258,0.71,175.87,175.81,6.40795859]
[1752797949572,0.03,175.86,175.81,6.40795859]
[1752797949766,0.03,175.86,175.81,5.71795859]
[1752797949971,0.03,175.86,175.82,0.69]
[1752797951572,0.03,175.86,175.81,0.03]
[1752797951769,0.74,175.86,175.81,0.03]
[1752797952773,0.74,175.86,175.81,0.72]
[1752797953470,6.42636069,175.86,175.81,6.40791783]
[1752797953673,0.03,175.86,175.82,0.69]
[1752797954062,0.74,175.86,175.82,0.69]
[1752797954375,6.42639092,175.86,175.81,5.71791783]
[1752797954676,0.71,175.85,175.81,0.03]
[1752797956458,6.39671183,175.85,175.81,0.03]
[1752797957188,0.71,175.84,175.81,0.03]
[1752797957552,0.71,175.83,175.81,0.03]
[1752797959758,0.71,175.82,175.81,0.03]
[1752797962793,6.39763508,175.82,175.81,0.03]
[1752797964389,0.71,175.82,175.81,0.03]
[1752797964676,5.68742844,175.83,175.81,0.03]
[1752797965056,0.71,175.82,175.81,0.03]
[1752797965256,17.49468397,175.82,175.81,0.03]
[1752797966565,23.18231905,175.82,175.81,0.03]
[1752797967968,35.89763508,175.82,175.81,0.03]
[1752797968471,35.18763508,175.82,175.81,0.03]
[1752797968778,35.89763508,175.82,175.81,0.03]
[1752797968979,52.68231905,175.82,175.81,0.03]
[1752797970381,35.89763508,175.82,175.81,0.03]
[1752797973199,42.25307152,175.82,175.81,0.03]
[1752797974884,59.03775549,175.82,175.81,0.03]
[1752797976069,65.39319193,175.82,175.81,1e-08]
[1752797976469,65.39319193,175.82,175.8,0.03]
[1752797976671,13.42087288,175.81,175.8,0.03]
[1752797977988,35.18383898,175.8,175.79,0.03]
[1752797978291,65.39383898,175.8,175.79,0.03]
[1752797979180,65.39383898,175.8,175.75,0.06]
[1752797979181,26.0,175.77,175.75,0.06]
[1752797979384,35.85543644,175.76,175.75,0.06]
[1752797979589,36.56543644,175.76,175.75,0.06]
[1752797979969,42.25501313,175.76,175.75,0.06]
[1752797980977,31.68935403,175.77,175.75,0.06]
[1752797981179,6.35543644,175.78,175.75,0.75]
[1752797981382,6.35543644,175.79,175.75,0.75]
[1752797982085,6.35543644,175.79,175.75,6.43986174]
[1752797982386,6.35543644,175.79,175.76,0.69]
[1752797982574,6.35543644,175.79,175.75,5.74986174]
[1752797982773,6.35543644,175.79,175.77,0.69]
[1752797983301,12.04375113,175.8,175.77,0.69]
[1752797983497,6.35543644,175.8,175.77,0.69]
[1752797983674,6.35543644,175.8,175.78,0.69]
[1752797984495,6.35543644,175.81,175.76,5.68956064]
[1752797984676,6.35543644,175.81,175.79,0.69]
[1752797985079,0.03,175.83,175.79,7.04543644]
[1752797985294,0.03,175.83,175.8,0.69]
[1752797986490,0.03,175.83,175.81,0.69]
[1752797986993,0.03,175.83,175.79,5.68860572]
[1752797987184,0.03,175.83,175.82,0.69]
[1752797988195,0.03,175.83,175.8,5.68819356]
[1752797988397,0.03,175.83,175.82,7.04543644]
[1752797988582,0.03,175.86,175.82,7.04543644]
[1752797988788,0.03,175.91,175.81,27.6177]
[1752797988789,0.03,175.91,175.85,6.35543644]
[1752797988987,0.03,175.91,175.88,6.35543644]
[1752797989503,0.03,175.91,175.89,0.63]
[1752797990590,0.03,175.91,175.87,12.67140055]
[1752797990909,6.35543644,175.88,175.85,0.63]
[1752797992204,0.71,175.9,175.86,0.63]
[1752797992405,0.03,175.91,175.87,6.98543644]
[1752797992611,0.03,175.91,175.88,0.63]
[1752797993196,0.03,175.91,175.89,0.63]
[1752797994114,0.03,175.91,175.89,6.31529858]
[1752797994296,0.03,175.91,175.89,0.63]
[1752797994906,0.03,175.91,175.89,6.31536027]
[1752797995109,0.03,175.91,175.89,0.63]
[1752797995315,0.03,175.91,175.9,0.63]
[1752797996409,0.03,175.91,175.9,6.31504832]
[1752797996600,0.03,175.91,175.9,12.67048476]
[1752797997094,0.03,175.91,175.9,6.31504832]
[1752797997819,0.03,175.91,175.9,12.67048476]
[1752797999416,0.03,175.91,175.9,38.67048476]
[1752797999721,0.03,175.91,175.9,12.67048476]
[1752797999913,0.03,175.91,175.9,29.45516873]
[1752798000505,0.03,175.92,175.91,42.78468397]
[1752798000711,0.03,175.92,175.91,56.09]
[1752798001023,0.03,175.92,175.88,2.1774]
[1752798001207,6.38543644,175.92,175.88,6.31559578]
[1752798001807,0.03,175.92,175.89,0.63]
[1752798002315,6.38543644,175.92,175.89,0.63]
[1752798002519,6.38543644,175.92,175.88,5.68559578]
[1752798002698,6.38543644,175.92,175.88,6.31559578]
[1752798003501,0.03,175.92,175.88,6.31559578]
[1752798003703,0.03,175.92,175.9,6.35543644]
[1752798003905,0.03,175.92,175.89,6.98543644]
[1752798004221,0.03,175.92,175.9,0.63]
[1752798005320,0.03,175.92,175.91,6.98543644]
[1752798005504,0.03,175.92,175.91,12.67016158]
[1752798005695,0.03,175.92,175.91,68.11016158]
[1752798005896,0.03,175.92,175.91,60.51864555]
[1752798007096,0.06,175.93,175.92,16.78468397]
[1752798007301,0.06,175.93,175.92,23.77012041]
[1752798007724,1e-08,175.93,175.92,29.45452241]
[1752798009327,1e-08,175.94,175.93,6.35543644]
[1752798009501,1e-08,175.94,175.93,6.98543644]
[1752798009697,1e-08,175.94,175.93,12.03951533]
[1752798009916,1e-08,175.94,175.93,12.66951533]
[1752798010200,0.03,175.99,175.98,16.78468397]
[1752798010404,0.03,175.99,175.98,52.58012041]
[1752798010606,0.03,175.99,175.98,53.21012041]
[1752798011026,0.03,175.99,175.98,54.78452041]
[1752798011521,0.06,176.0,175.98,54.78452041]
[1752798011705,0.06,176.0,175.99,29.45226144]
[1752798013417,0.06,176.01,176.0,16.78468397]
[1752798013724,0.06,176.01,176.0,59.54555685]
[1752798013924,0.1,176.04,176.03,26.0]
[1752798014123,0.1,176.04,176.03,61.77543644]
[1752798014307,0.1,176.04,176.03,79.19012041]
[1752798015122,0.1,176.04,176.03,84.87097026]
[1752798017910,0.1,176.06,176.04,16.78468397]
[1752798018112,0.1,176.06,176.05,52.56012041]
[1752798018317,0.1,176.06,176.05,53.19012041]
[1752798019215,0.1,176.06,176.05,52.51488845]
[1752798019413,0.1,176.06,176.05,58.87032489]
[1752798020112,0.1,176.06,176.05,84.22032489]
[1752798020511,0.1,176.06,176.05,41.43564092]
[1752798020720,0.1,176.06,176.05,67.43564092]
[1752798021032,0.1,176.06,176.05,84.85032489]
[1752798021608,0.1,176.06,176.05,58.85032489]
[1752798022004,0.1,176.1,176.08,26.0]
[1752798022229,0.1,176.1,176.09,35.75543644]
[1752798022729,0.1,176.1,176.09,36.38543644]
[1752798023330,0.1,176.1,176.05,88.8]
[1752798023632,0.69,176.09,176.08,26.0]
[1752798024422,0.1,176.1,176.08,26.0]
[1752798025220,0.79,176.1,176.08,26.0]
[1752798027743,0.69,176.09,176.08,26.0]
[1752798029636,0.69,176.09,176.07,26.0]
[1752798029820,0.72,176.08,176.07,26.0]
[1752798030032,0.72,176.09,176.07,31.67946922]
[1752798030236,0.1,176.1,176.07,31.67946922]
[1752798030425,0.82,176.1,176.07,26.0]
[1752798030629,0.72,176.09,176.07,26.0]
[1752798030924,0.72,176.08,176.07,26.0]
[1752798031329,0.72,176.08,176.04,6.35543644]
[1752798031520,7.07543644,176.08,176.03,29.38]
[1752798031727,0.72,176.07,176.03,35.06084985]
[1752798031921,0.1,176.1,176.03,35.06084985]
[1752798032121,0.1,176.1,176.05,6.35543644]
[1752798032122,0.82,176.1,176.05,6.35543644]
[1752798032337,0.72,176.09,176.05,35.73543644]
[1752798032533,0.72,176.08,176.05,35.73543644]
[1752798032845,0.72,176.07,176.03,61.06084985]
[1752798033222,7.07543644,176.07,176.03,61.06084985]
[1752798033442,0.72,176.06,176.03,61.06084985]
[1752798035328,0.82,176.1,176.05,6.35543644]
[1752798035524,0.82,176.1,176.06,61.73543644]
[1752798035828,0.82,176.1,176.06,67.41509078]
[1752798036446,0.72,176.09,176.06,61.05965434]
[1752798036963,0.1,176.1,176.06,61.05965434]
[1752798037167,0.1,176.1,176.07,6.35543644]
[1752798037965,0.1,176.1,176.06,61.68965434]
[1752798037966,0.1,176.1,176.09,6.35543644]
[1752798038336,0.1,176.1,176.09,6.98543644]
[1752798038736,0.1,176.1,176.09,12.66435063]
[1752798039845,0.1,176.1,176.09,12.03435063]
[1752798040034,0.82,176.1,176.09,26.0]
[1752798040338,0.82,176.1,176.08,29.38]
[1752798040885,0.1,176.1,176.09,5.67891419]
[1752798041168,0.1,176.1,176.09,12.03435063]
[1752798042136,0.1,176.1,176.09,12.66435063]
[1752798043534,0.1,176.1,176.09,12.03435063]
[1752798044354,0.82,176.1,176.09,5.67891419]
[1752798044549,0.1,176.1,176.09,5.67891419]
[1752798044771,0.1,176.1,176.08,41.41455465]
[1752798044958,0.1,176.1,176.08,35.05911821]
[1752798045158,0.1,176.1,176.08,41.41455465]
[1752798045361,0.1,176.1,176.08,12.03455465]
[1752798045559,0.1,176.1,176.08,41.41455465]
[1752798045759,0.1,176.1,176.08,42.04455465]
[1752798045947,0.1,176.1,176.09,6.35543644]
[1752798046157,0.1,176.1,176.09,6.98543644]
[1752798046642,0.1,176.1,176.09,6.35543644]
[1752798046845,0.1,176.1,176.08,41.41455465]
[1752798047154,0.1,176.1,176.09,29.38]
[1752798047354,0.82,176.1,176.09,29.38]
[1752798047561,0.82,176.1,176.08,29.38]
[1752798048968,0.82,176.1,176.08,35.05920076]
[1752798050175,0.72,176.09,176.07,61.05944072]
[1752798050379,0.1,176.1,176.07,67.41487716]
[1752798050583,0.1,176.1,176.07,68.04487716]
[1752798050772,0.1,176.1,176.08,6.35543644]
[1752798051092,0.1,176.1,176.09,12.03435063]
[1752798051644,0.1,176.1,176.09,41.41435063]
[1752798053373,0.82,176.1,176.09,35.05891419]
[1752798053556,0.82,176.1,176.08,5.6791488]
[1752798053762,0.72,176.09,176.08,35.0391488]
[1752798053963,0.1,176.1,176.08,5.6791488]
[1752798054658,0.82,176.1,176.08,5.6791488]
[1752798055057,0.1,176.1,176.08,5.6791488]
[1752798056074,0.1,176.1,176.08,12.03458524]
[1752798056270,0.1,176.1,176.09,6.35543644]
[1752798056478,0.1,176.1,176.09,36.34543644]
[1752798056683,0.1,176.1,176.09,41.39435063]
[1752798057975,0.1,176.1,176.09,42.02435063]
[1752798058979,0.1,176.1,176.09,41.39435063]
[1752798059381,0.1,176.1,176.09,42.02435063]
[1752798060086,0.1,176.1,176.09,58.8090346]
[1752798060262,0.72,176.18,176.12,26.0]
[1752798060464,0.72,176.18,176.15,6.35543644]
[1752798060770,0.72,176.18,176.15,35.71543644]